Cogmind - Beta 13 @@@ ROGUE MODE // 2024.07.07 @ 21:01:16 Player: celerysam Result: Destroyed by H-77 Assassin with Coil Gun Performance ------------- Evolutions (6) 3000 Regions Visited (15) 3000 Robots Destroyed (10) 50 Value Destroyed (432) 432 Prototype IDs (29) 580 Alien Tech Used (0) 0 Bonus (1042) 1042 TOTAL SCORE: 8104 Bonus ------- Follower Combat Kills 42 Entered Garrisons 200 Entered DSFs 500 Aligned with FarCom 300 Cogmind --------- Core Integrity 0/1150 Matter 30/300 Energy 90/100 System Corruption 22% Temperature Cool (0) Movement Core (50) Location -4/Factory Parts ------- > --- POWER (2) -------- (None) > --- PROPULSION (7) --- (None) > --- UTILITY (6) ------ (None) > --- WEAPON (4) ------- (None) > --- INVENTORY (5) ---- Antigrav System Improved Gyrokinetic Inverter Improved Gyrokinetic Inverter Advanced Cryofiber Web Long-range Tractor Beam Peak State ------------ > --- POWER ------------ Enhanced Nuclear Core Cooled Antimatter Reactor > --- PROPULSION ------- Advanced Medium Treads Gravmag Array Cooled Gravmag System Improved VTOL Module > --- UTILITY ---------- Matter Compressor Advanced Weight Redist. System Improved Transmission Jammer Improved Reaction Control System Point Defense Array > --- WEAPON ----------- (None) > --- INVENTORY -------- Centrium Wheel Quantum Capacitor Authchip [Propulsion] [Rating: 70] Favorites ----------- Power Light Ion Engine Engine Light Ion Engine Power Core Enhanced Nuclear Core Reactor Cooled Antimatter Reactor Propulsion Flight Unit Treads Advanced Medium Treads Leg Improved VSS Leg Wheel Centrium Wheel Hover Unit Cooled Gravmag System Flight Unit Flight Unit Utility Advanced Weight Redist. System Device Advanced Weight Redist. System Storage Small Storage Unit Processor Advanced Signal Interpreter Protection Improved Propulsion Shielding Weapon Heavy Mace Energy Gun Medium Laser Ballistic Gun Assault Rifle Ballistic Cannon Flak Cannon Launcher Heavy Shock Bomb Launcher Special Weapon Improved Plasma Cutter Impact Weapon Heavy Mace Special Melee Weapon Improved Datajack Build | -11 -10 -10 -10 -9 -8 -7 -7 -6 -6 -5 -5 -5 -4 -4 -4 ------- Run | Yrd Mat Min Exi Min Mat Fac Sto Fac DSF Fac Gar Fac Fac Was Fac Slots Evolved 12 | . . . . . 4 2 . 2 . 2 . . 2 . . Power 1 | . . . . . 1 . . . . . . . . . . Propulsion 5 | . . . . . 2 2 . . . . . . 1 . . Utility 4 | . . . . . 1 . . 1 . 1 . . 1 . . Weapon 2 | . . . . . . . . 1 . 1 . . . . . Parts Attached 64 | 8 3 6 . 1 9 2 5 1 1 . . 7 9 2 10 Power 10 | 1 . 1 . . 1 1 2 . . . . 1 1 1 1 Engine 3 | 1 . 1 . . 1 . . . . . . . . . . Core 6 | . . . . . . 1 2 . . . . 1 1 . 1 Reactor 1 | . . . . . . . . . . . . . . 1 . Propulsion 26 | 4 . 2 . 1 3 1 2 . . . . 5 2 . 6 Treads 2 | 1 . . . . . . . . . . . . 1 . . Leg 2 | 1 . . . . . . . . . . . . . . 1 Wheel 4 | 2 . . . . . . . . . . . . . . 2 Hover 6 | . . . . . . . . . . . . 4 1 . 1 Flight 12 | . . 2 . 1 3 1 2 . . . . 1 . . 2 Utility 13 | 1 2 1 . . 2 . . 1 . . . 1 4 1 . Device 7 | . 1 . . . 1 . . . . . . 1 3 1 . Storage 4 | 1 1 1 . . . . . . . . . . 1 . . Processor 1 | . . . . . . . . 1 . . . . . . . Hackware . | . . . . . . . . . . . . . . . . Protection 1 | . . . . . 1 . . . . . . . . . . Artifact . | . . . . . . . . . . . . . . . . Weapon 15 | 2 1 2 . . 3 . 1 . 1 . . . 2 . 3 Energy Gun 3 | 1 . 1 . . . . . . . . . . . . 1 Energy Cannon . | . . . . . . . . . . . . . . . . Ballistic Gun 7 | 1 1 1 . . 2 . . . . . . . 1 . 1 Ballistic Cannon 1 | . . . . . . . 1 . . . . . . . . Launcher 1 | . . . . . . . . . . . . . . . 1 Special Weapon 1 | . . . . . . . . . . . . . 1 . . Impact Weapon 1 | . . . . . 1 . . . . . . . . . . Slashing Weapon . | . . . . . . . . . . . . . . . . Piercing Weapon . | . . . . . . . . . . . . . . . . Special Melee Weapon 1 | . . . . . . . . . 1 . . . . . . Unidentified Prototypes 6 | . . . . . . . 3 . . . . 1 1 1 . Corrupted Parts 1 | . . . . . . . . . . . . . . . 1 System Corruption 5 | . . . . . . . . . . . . . . . 5 Parts Lost 32 | . . 2 . . 1 . . . . . . 5 6 4 14 Power 5 | . . 1 . . 1 . . . . . . . 1 1 1 Propulsion 14 | . . 1 . . . . . . . . . 3 1 1 8 Utility 7 | . . . . . . . . . . . . 2 1 2 2 Weapon 6 | . . . . . . . . . . . . . 3 . 3 Highest Loss Streak 10 | . . 2 . . 1 . . . . . . 3 4 4 10 To Critical Strikes . | . . . . . . . . . . . . . . . . Average Slot Usage (%) 65 | . 97 84 85 85 87 84 96 88 97 88 88 73 51 43 35 Engine 4 | . 14 11 14 14 16 7 5 . . . . . . . . Core 3 | . . . . . . 3 8 13 13 11 11 11 5 3 2 Wheel 3 | . 28 3 . . . . . . . . . . . . 6 Hover 2 | . . . . . . . . . . . . 5 6 8 2 Flight 18 | . . 23 28 28 36 34 43 40 40 35 35 23 8 5 7 Device 11 | . 2 14 14 14 9 15 15 13 13 11 11 13 14 16 6 Storage 1 | . 24 3 . . . . . . . . . . . 3 . Protection 1 | . . . . . 7 7 7 6 6 5 5 2 . . . Energy Gun 3 | . 14 14 14 14 4 . . . . . . . . . . Ballistic Gun 5 | . 14 14 14 14 10 7 5 . . . . . 4 . 2 Impact Weapon 2 | . . . . . 2 7 7 6 6 5 5 5 4 . . Special Melee Weapon 1 | . . . . . . . . . 4 5 5 5 4 . . Naked Turns 7 | . . . . . . . . . . . . . . . 7 Heaviest Build 37 | 11 15 10 8 8 15 19 28 28 29 29 29 37 22 37 20 Greatest Support 40 | 20 20 20 8 12 29 33 39 31 39 31 39 39 40 40 32 Greatest Overweight (x) 1 | . . . . . . . . . . . . 1 1 1 1 Average Overweight (x) . | . . . . . . . . . . . . . . . . Largest Inventory Capacity 8 | 8 8 8 5 5 5 5 5 5 5 5 5 5 5 5 5 Average Capacity 5 | 5 8 5 5 5 5 5 5 5 5 5 5 5 5 5 5 Most Carried 8 | 6 8 8 5 5 5 5 5 5 5 5 5 5 5 5 5 Average Carried 4 | 4 6 5 4 5 4 4 4 4 4 5 5 4 4 4 4 Final Capacity 8 | 8 8 5 5 5 5 5 5 5 5 5 5 5 5 5 5 Final Carried 8 | 6 8 5 5 5 5 5 5 4 5 5 5 4 5 5 5 Class Distribution -------------------- 82% | Mutant 15% | Sprinter Dominant Class ---------------- Mutant | -10/Materials Mutant | -10/Mines Mutant | -10/Exiles Mutant | -9/Mines Mutant | -8/Materials Mutant | -7/Factory Sprinter | -7/Storage Sprinter | -6/Factory Sprinter | -6/DSF Sprinter | -5/Factory Sprinter | -5/Garrison Sprinter | -5/Factory Mutant | -4/Factory Mutant | -4/Waste Mutant | -4/Factory Resources | -11 -10 -10 -10 -9 -8 -7 -7 -6 -6 -5 -5 -5 -4 -4 -4 ----------- Run | Yrd Mat Min Exi Min Mat Fac Sto Fac DSF Fac Gar Fac Fac Was Fac Matter Collected 539 | 193 . 30 . 74 . . 28 . . . . 57 99 . 58 Remotely . | . . . . . . . . . . . . . . . . Salvage Created 255 | . . 46 . . 56 . 28 . . . . . 99 . 26 Parts 14 | . . 7 . . 2 . 2 . . . . . 1 . 2 Haulers Intercepted . | . . . . . . . . . . . . . . . . Recyclers Shooed . | . . . . . . . . . . . . . . . . Parts Field Recycled . | . . . . . . . . . . . . . . . . Retrieved Matter . | . . . . . . . . . . . . . . . . Parts Self-Destructed . | . . . . . . . . . . . . . . . . Prevented . | . . . . . . . . . . . . . . . . Kills | -11 -10 -10 -10 -9 -8 -7 -7 -6 -6 -5 -5 -5 -4 -4 -4 ------- Run | Yrd Mat Min Exi Min Mat Fac Sto Fac DSF Fac Gar Fac Fac Was Fac Combat Hostiles Destroyed 6 | . . 3 . . 1 . 1 . . . . . . . 1 Melee 1 | . . . . . . . 1 . . . . . . . . Guns 4 | . . 3 . . 1 . . . . . . . . . . AOE 1 | . . . . . . . . . . . . . . . 1 Classes Destroyed 6 | . . 1 . . 1 . 1 . . . . . 3 . . Worker 2 | . . . . . . . . . . . . . 2 . . Tunneler 1 | . . . . . . . . . . . . . 1 . . Watcher 1 | . . . . . . . . . . . . . 1 . . Swarmer 4 | . . 3 . . . . . . . . . . . . 1 Grunt 1 | . . . . . . . 1 . . . . . . . . Sentry 1 | . . . . . 1 . . . . . . . . . . Best Kill Streak 3 | . . 3 . . 1 . 1 . . . . . 2 . 1 Combat Bots Only 3 | . . 3 . . 1 . 1 . . . . . . . 1 Max Kills in Single Turn 1 | . . 1 . . 1 . 1 . . . . . 1 . 1 Gunslinging . | . . . . . . . . . . . . . . . . Exploded 1 | . . . . . . . . . . . . . . . 1 Melee 1 | . . . . . . . 1 . . . . . . . . Uniques/NPCs Destroyed . | . . . . . . . . . . . . . . . . Combat | -11 -10 -10 -10 -9 -8 -7 -7 -6 -6 -5 -5 -5 -4 -4 -4 -------- Run | Yrd Mat Min Exi Min Mat Fac Sto Fac DSF Fac Gar Fac Fac Was Fac Hostile Shots Fired 449 | . 11 39 . 1 10 . 55 . 1 . 4 39 120 4 165 Missed 204 | . 5 7 . . 6 . 26 . . . 2 16 69 . 73 Damage Taken 4656 | . 81 261 . 8 50 . 350 . 49 97 37 593 703 197 2230 Core 1587 | . . 97 . . 28 . 89 . . . 19 187 74 94 999 Absorbed by Shields . | . . . . . . . . . . . . . . . . Redirected to Shielding 104 | . . . . . . . 53 . . 10 11 30 . . . Core Remaining (%) 86 | 100 . . . 61 94 . 87 . 100 . . 79 . . . Volleys Fired 19 | . . 9 . . 2 . 3 . . . . . 1 . 4 Largest 2 | . . 2 . . 2 . 1 . . . . . 1 . 1 Hottest 88 | . . 70 . . 70 . 44 . . . . . 28 . 88 Shots Fired 30 | . . 18 . . 4 . 3 . . . . . 1 . 4 Gun 25 | . . 18 . . 4 . . . . . . . 1 . 2 Cannon 3 | . . . . . . . 3 . . . . . . . . Launcher 2 | . . . . . . . . . . . . . . . 2 Special . | . . . . . . . . . . . . . . . . Kinetic 15 | . . 9 . . 2 . 3 . . . . . 1 . . Thermal 13 | . . 9 . . 2 . . . . . . . . . 2 Explosive . | . . . . . . . . . . . . . . . . Electromagnetic 2 | . . . . . . . . . . . . . . . 2 Robot Hit Streak 5 | . . 3 . . 4 . 5 . . . . . . . 1 Robot Miss Streak 7 | . . 7 . . . . 2 . . . . . . . 4 Penetration Max . | . . . . . . . . . . . . . . . . Secondary Targets 2 | . . 2 . . . . . . . . . . . . . Max Gunslinging Chain 1 | . . 1 . . . . . . . . . . . . . Shots Hit Robots 20 | . . 7 . . 3 . 5 . . . . . 4 . 1 Core Hits 12 | . . 3 . . 2 . 4 . . . . . 2 . 1 Critical Kills . | . . . . . . . . . . . . . . . . Critical Parts Destroyed . | . . . . . . . . . . . . . . . . Critical Strikes . | . . . . . . . . . . . . . . . . Melee Attacks 29 | . . . . . 4 . 5 . . . 3 12 5 . . Impact 27 | . . . . . 4 . 5 . . . 1 12 5 . . Slashing . | . . . . . . . . . . . . . . . . Piercing . | . . . . . . . . . . . . . . . . Sneak Attacks 3 | . . . . . . . . . . . . . 3 . . Combat Hostiles . | . . . . . . . . . . . . . . . . Follow-up Attacks . | . . . . . . . . . . . . . . . . Damage Inflicted 717 | . . 99 . . 36 . 134 . . . . 6 374 . 68 Guns 166 | . . 99 . . 36 . . . . . . . . . 31 Cannons 58 | . . . . . . . 58 . . . . . . . . Explosions 30 | . . . . . . . . . . . . . . . 30 Melee 394 | . . . . . . . 76 . . . . . 318 . . Ramming 69 | . . . . . . . . . . . . 6 56 . 7 Kinetic 129 | . . 60 . . 11 . 58 . . . . . . . . Thermal 95 | . . 39 . . 25 . . . . . . . . . 31 Explosive . | . . . . . . . . . . . . . . . . Electromagnetic 30 | . . . . . . . . . . . . . . . 30 Impact 394 | . . . . . . . 76 . . . . . 318 . . Slashing . | . . . . . . . . . . . . . . . . Piercing . | . . . . . . . . . . . . . . . . Highest Corruption 22 | . . . . . . . 1 . . 3 3 6 2 12 22 Average Corruption 9 | . . . . . . . 1 . . 3 3 3 1 10 15 Corruption Purged . | . . . . . . . . . . . . . . . . Corruption Blocked . | . . . . . . . . . . . . . . . . Effects 39 | . . . . . . . . . . . . 5 3 4 27 Message Errors 8 | . . . . . . . . . . . . 2 . 1 5 Matter Fused 6 | . . . . . . . . . . . . . 2 . 4 Heat Flow Errors 5 | . . . . . . . . . . . . 1 . . 4 Energy Discharges 3 | . . . . . . . . . . . . 1 . 1 1 Parts Rejected 1 | . . . . . . . . . . . . 1 . . . Data Loss (minor) 6 | . . . . . . . . . . . . . 1 . 5 Data Loss (major) 4 | . . . . . . . . . . . . . . . 4 Alerts 3 | . . . . . . . . . . . . . . 1 2 Misdirections 3 | . . . . . . . . . . . . . . 1 2 Overload Shots . | . . . . . . . . . . . . . . . . Overflow Damage 145 | . . . . . . . . . . . . . 143 . 2 Projectiles . | . . . . . . . . . . . . . . . . Explosions 2 | . . . . . . . . . . . . . . . 2 Melee 143 | . . . . . . . . . . . . . 143 . . Knockbacks 1 | . . . . . . . 1 . . . . . . . . Impact . | . . . . . . . . . . . . . . . . Kinetic 1 | . . . . . . . 1 . . . . . . . . Secondary . | . . . . . . . . . . . . . . . . Self-Inflicted Damage 80 | . . . . . . . . . . . . 3 27 . 50 Shots 2 | . . . . . . . . . . . . . . . 2 Rammed 4 | . . . . . . . . . . . . 1 3 . . Targets Rammed 5 | . . . . . . . . . . . . 1 3 . 1 Kicked 1 | . . . . . . . . . . . . . . . 1 Crushed . | . . . . . . . . . . . . . . . . Highest Temperature 392 | . . 6 . . 42 15 392 . . . 84 262 . . 218 Average Temperature 122 | . . 3 . . 23 10 172 . . . 33 120 . . 73 Received Heat Transfer 297 | . 45 . . . . . 198 . . . 18 . 27 . 9 Effects 10 | . . . . . . . 9 . . . . . . . 1 Shutdowns 3 | . . . . . . . 3 . . . . . . . . Energy Bleed 4 | . . . . . . . 3 . . . . . . . 1 Interference 2 | . . . . . . . 2 . . . . . . . . Matter Decay 1 | . . . . . . . 1 . . . . . . . . Siege Activations . | . . . . . . . . . . . . . . . . Robots Corrupted . | . . . . . . . . . . . . . . . . Combat Hostiles . | . . . . . . . . . . . . . . . . Parts Fried 5 | . . . . . . . . . . . . . 5 . . Impact Corruptions 3 | . . . . . . . . . . . . . 3 . . Robots Melted . | . . . . . . . . . . . . . . . . Combat Hostiles . | . . . . . . . . . . . . . . . . Parts Melted 1 | . . 1 . . . . . . . . . . . . . Heat Transferred 222 | . . 111 . . 74 . . . . . . . . . 37 Parts Sabotaged . | . . . . . . . . . . . . . . . . Parts Stolen . | . . . . . . . . . . . . . . . . Parts Stripped . | . . . . . . . . . . . . . . . . Power Chain Reactions . | . . . . . . . . . . . . . . . . Alert | -11 -10 -10 -10 -9 -8 -7 -7 -6 -6 -5 -5 -5 -4 -4 -4 ------- Run | Yrd Mat Min Exi Min Mat Fac Sto Fac DSF Fac Gar Fac Fac Was Fac Peak Influence 205 | . 15 130 . 22 54 10 205 93 65 33 132 84 78 33 25 Initial 93 | . . 5 . . 8 10 4 93 65 33 32 69 29 18 10 Average 39 | . 6 86 . . 29 10 71 93 65 33 62 73 49 20 15 Maximum Alert Level 1 | . . . . . . . 1 . . . . . . . . Low Security (%) 99 | 100 100 100 . 100 100 100 91 100 100 100 100 100 100 100 100 Level 1 . | . . . . . . . 8 . . . . . . . . Level 2 . | . . . . . . . . . . . . . . . . Level 3 . | . . . . . . . . . . . . . . . . Level 4 . | . . . . . . . . . . . . . . . . Level 5 . | . . . . . . . . . . . . . . . . High Security . | . . . . . . . . . . . . . . . . Max Security . | . . . . . . . . . . . . . . . . Squads Dispatched 13 | . 1 . . . 2 . 3 . 1 . . 2 1 . 3 Investigation 5 | . . . . . 1 . 3 . . . . 1 . . . Extermination 1 | . . . . . . . . . . . . . . . 1 Reinforcement 7 | . 1 . . . 1 . . . 1 . . 1 1 . 2 Assault . | . . . . . . . . . . . . . . . . Garrison . | . . . . . . . . . . . . . . . . Intercept . | . . . . . . . . . . . . . . . . Searches Triggered . | . . . . . . . . . . . . . . . . Construction Impeded . | . . . . . . . . . . . . . . . . Haulers Reinforced 1 | . . . . . . . . . . . . . 1 . . Active Scanning Responses . | . . . . . . . . . . . . . . . . Cargo Convoy Interrupts . | . . . . . . . . . . . . . . . . Stealth | -11 -10 -10 -10 -9 -8 -7 -7 -6 -6 -5 -5 -5 -4 -4 -4 --------- Run | Yrd Mat Min Exi Min Mat Fac Sto Fac DSF Fac Gar Fac Fac Was Fac Distress Signals 5 | . . . . . 1 . 2 . . . . . 1 . 1 Communications Jammed . | . . . . . . . . . . . . . . . . Distress Signals . | . . . . . . . . . . . . . . . . Times Spotted 79 | . 3 6 1 3 5 . 18 . 1 . 4 7 9 6 16 Peak Tracking Total 12 | . 3 3 1 3 3 . 12 . 1 . 4 6 7 6 7 Tactical Retreats 6 | . . 1 1 . . . 2 . . . . . . . 2 Traps | -11 -10 -10 -10 -9 -8 -7 -7 -6 -6 -5 -5 -5 -4 -4 -4 ------- Run | Yrd Mat Min Exi Min Mat Fac Sto Fac DSF Fac Gar Fac Fac Was Fac Traps Triggered 4 | . . . . . . . 1 . . 1 . . 2 . . Indirectly . | . . . . . . . . . . . . . . . . Trap Hack Attempts . | . . . . . . . . . . . . . . . . Triggered . | . . . . . . . . . . . . . . . . Disarmed . | . . . . . . . . . . . . . . . . Reprogrammed . | . . . . . . . . . . . . . . . . Reused . | . . . . . . . . . . . . . . . . Traps Extracted . | . . . . . . . . . . . . . . . . Installed . | . . . . . . . . . . . . . . . . Triggered . | . . . . . . . . . . . . . . . . Machines | -11 -10 -10 -10 -9 -8 -7 -7 -6 -6 -5 -5 -5 -4 -4 -4 ---------- Run | Yrd Mat Min Exi Min Mat Fac Sto Fac DSF Fac Gar Fac Fac Was Fac Machines Disabled 4 | . . 1 . . . . 2 . . . 1 . . . . Max in Single Turn 1 | . . 1 . . . . 1 . . . 1 . . . . Garrison Relay 1 | . . . . . . . . . . . 1 . . . . Machines Repaired . | . . . . . . . . . . . . . . . . Machines Dismantled . | . . . . . . . . . . . . . . . . Machines Sabotaged . | . . . . . . . . . . . . . . . . Overloaded Fab Kills . | . . . . . . . . . . . . . . . . Hacking | -11 -10 -10 -10 -9 -8 -7 -7 -6 -6 -5 -5 -5 -4 -4 -4 --------- Run | Yrd Mat Min Exi Min Mat Fac Sto Fac DSF Fac Gar Fac Fac Was Fac Machines Accessed 16 | . . . 3 . . 2 4 2 . 1 1 1 1 . 1 Terminals 7 | . . . . . . . 3 1 . . 1 . 1 . 1 Fabricators 1 | . . . . . . . . . . . . 1 . . . Repair Stations . | . . . . . . . . . . . . . . . . Recycling Units 3 | . . . . . . 2 . 1 . . . . . . . Scanalyzers . | . . . . . . . . . . . . . . . . Garrison Access 2 | . . . . . . . 1 . . 1 . . . . . Total Hacks 26 | . . . 3 . . 3 8 3 . 4 2 1 1 . 1 Successful 13 | . . . 3 . . 3 2 2 . 1 . 1 1 . . Failed 13 | . . . . . . . 6 1 . 3 2 . . . 1 Catastrophic 6 | . . . . . . . 4 . . . 1 . . . 1 Database Lockouts . | . . . . . . . . . . . . . . . . Manual 7 | . . . 1 . . . 2 . . . 2 1 1 . . Terminals 11 | . . . . . . . 5 2 . . 2 . 1 . 1 Fabricators 1 | . . . . . . . . . . . . 1 . . . Repair Stations . | . . . . . . . . . . . . . . . . Recycling Units 4 | . . . . . . 3 . 1 . . . . . . . Scanalyzers . | . . . . . . . . . . . . . . . . Garrison Access 7 | . . . . . . . 3 . . 4 . . . . . Terminal Hacks 6 | . . . 3 . . . 1 1 . . . . 1 . . Record 2 | . . . 2 . . . . . . . . . . . . Open Door 1 | . . . . . . . 1 . . . . . . . . Open DSF 2 | . . . . . . . . 1 . . . . 1 . . Derelict Proto ID Bank 1 | . . . 1 . . . . . . . . . . . . Fabricator Hacks . | . . . . . . . . . . . . . . . . Repair Station Hacks . | . . . . . . . . . . . . . . . . Recycling Unit Hacks 4 | . . . . . . 3 . 1 . . . . . . . Report Inventory 3 | . . . . . . 2 . 1 . . . . . . . Retrieve Components 1 | . . . . . . 1 . . . . . . . . . Scanalyzer . | . . . . . . . . . . . . . . . . Garrison Access Hacks 2 | . . . . . . . 1 . . 1 . . . . . Unlock Access 1 | . . . . . . . . . . 1 . . . . . Coupler Status 1 | . . . . . . . 1 . . . . . . . . Unauthorized Hacks 1 | . . . . . . . . . . . . 1 . . . Terminals . | . . . . . . . . . . . . . . . . Fabricators 1 | . . . . . . . . . . . . 1 . . . Download 1 | . . . . . . . . . . . . 1 . . . Repair Stations . | . . . . . . . . . . . . . . . . Recycling Units . | . . . . . . . . . . . . . . . . Scanalyzers . | . . . . . . . . . . . . . . . . Garrison Access . | . . . . . . . . . . . . . . . . Data Cores Recovered . | . . . . . . . . . . . . . . . . Used . | . . . . . . . . . . . . . . . . Hacking Detections 9 | . . . . . . 1 3 1 . 1 1 . 1 . 1 Full Trace Events 4 | . . . . . . . 3 . . . 1 . . . . Feedback Events . | . . . . . . . . . . . . . . . . Feedback Blocked . | . . . . . . . . . . . . . . . . Robot Schematics Acquired . | . . . . . . . . . . . . . . . . Robots Built . | . . . . . . . . . . . . . . . . Authchips . | . . . . . . . . . . . . . . . . Time . | . . . . . . . . . . . . . . . . Total Robot Build Rating . | . . . . . . . . . . . . . . . . Part Schematics Acquired 1 | . . . . . . . . . . . . 1 . . . Parts Built . | . . . . . . . . . . . . . . . . Authchips . | . . . . . . . . . . . . . . . . Time . | . . . . . . . . . . . . . . . . Total Part Build Rating . | . . . . . . . . . . . . . . . . Parts Repaired . | . . . . . . . . . . . . . . . . Time . | . . . . . . . . . . . . . . . . Parts Recycled . | . . . . . . . . . . . . . . . . Recycled Matter . | . . . . . . . . . . . . . . . . Retrieved Matter . | . . . . . . . . . . . . . . . . Retrieved Components 1 | . . . . . . 1 . . . . . . . . . Parts Scanalyzed . | . . . . . . . . . . . . . . . . Part Schematics Acquired . | . . . . . . . . . . . . . . . . Parts Damaged . | . . . . . . . . . . . . . . . . Bothacking | -11 -10 -10 -10 -9 -8 -7 -7 -6 -6 -5 -5 -5 -4 -4 -4 ------------ Run | Yrd Mat Min Exi Min Mat Fac Sto Fac DSF Fac Gar Fac Fac Was Fac Used RIF Installer . | . . . . . . . . . . . . . . . . Robots Hacked . | . . . . . . . . . . . . . . . . Non-combat . | . . . . . . . . . . . . . . . . Combat . | . . . . . . . . . . . . . . . . Robot Hacks Applied . | . . . . . . . . . . . . . . . . Relay Couplers Released 4 | . . . . . . . . . . . 4 . . . . Machine Destruction 4 | . . . . . . . . . . . 4 . . . . Fabnet Peak Effective % . | . . . . . . . . . . . . . . . . Robots Rewired . | . . . . . . . . . . . . . . . . Allies Hacked . | . . . . . . . . . . . . . . . . Hacks Repelled . | . . . . . . . . . . . . . . . . Allies | -11 -10 -10 -10 -9 -8 -7 -7 -6 -6 -5 -5 -5 -4 -4 -4 -------- Run | Yrd Mat Min Exi Min Mat Fac Sto Fac DSF Fac Gar Fac Fac Was Fac Total Allies 13 | . . 3 . . . . 10 . . . . . . . . Largest Group 10 | . . 3 3 3 2 . 10 . . . . . . . . Highest-Rated Group 173 | . . 40 40 40 32 . 173 . . . . . . . . Highest-Rated Ally 29 | . . 16 16 16 16 . 29 . . . . . . . . Total Orders . | . . . . . . . . . . . . . . . . Ally Attacks 64 | . . . 2 8 8 . 46 . . . . . . . . Total Damage 799 | . . . 10 81 76 . 632 . . . . . . . . Kills 7 | . . . . 1 . . 6 . . . . . . . . Allies Corrupted . | . . . . . . . . . . . . . . . . Allies Melted . | . . . . . . . . . . . . . . . . Intel | -11 -10 -10 -10 -9 -8 -7 -7 -6 -6 -5 -5 -5 -4 -4 -4 ------- Run | Yrd Mat Min Exi Min Mat Fac Sto Fac DSF Fac Gar Fac Fac Was Fac Robot Analysis Total . | . . . . . . . . . . . . . . . . Derelict Logs Recovered 1 | . . 1 . . . . . . . . . . . . . Drone Launches . | . . . . . . . . . . . . . . . . Drone Recoveries . | . . . . . . . . . . . . . . . . Exploration | -11 -10 -10 -10 -9 -8 -7 -7 -6 -6 -5 -5 -5 -4 -4 -4 ------------- Run | Yrd Mat Min Exi Min Mat Fac Sto Fac DSF Fac Gar Fac Fac Was Fac Turns Passed 2128 | 54 66 183 230 51 95 43 137 35 25 37 47 159 294 75 597 Spaces Moved 3099 | 46 66 299 412 67 181 111 365 100 86 108 145 211 369 108 425 Core 63 | 21 . . . . . . . . . . . . . 27 15 Treads 26 | 4 . . . . . . . . . . . . 22 . . Legs 137 | 5 . . . . . . . . . . . . . . 132 Wheels 339 | 16 66 7 . . . . . . . . . . . . 250 Hover 437 | . . . . . . . . . . . . 7 347 81 2 Flight 2097 | . . 292 412 67 181 111 365 100 86 108 145 204 . . 26 Fastest Speed 25 | 50 80 37 37 37 34 31 25 32 25 32 25 25 50 50 45 Average Speed 52 | 77 80 38 37 37 34 33 28 32 25 32 28 46 68 66 117 Slowest Speed 180 | 160 80 80 37 44 34 44 32 32 25 32 32 117 145 130 180 Overloaded Moves . | . . . . . . . . . . . . . . . . Propulsion Burnouts . | . . . . . . . . . . . . . . . . Robots Hopped 7 | . . 1 . . . 1 5 . . . . . . . . Cave-ins Triggered 1 | . . . . . . . . . . . . 1 . . . Time Travels 1 | . . . . . . . . 1 . . . . . . . Exploration Rate (%) 28 | 3 14 66 71 14 27 4 54 3 78 2 11 7 12 73 15 Regions Visited 15 Branch Regions 4 Pre-discovered Areas 1 | . . 1 . . . . . . . . . . . . . Known Exits Taken 2 | . . . . . . . . 1 . 1 . . . . . Unknown Exits Taken 9 | 1 1 1 1 1 1 1 1 . . . . 1 . . . Scrap Searched 2 | . . . . 2 . . . . . . . . . . . Spaces Dug 16 | . . . . . 4 . . . . . . 11 1 . . Terrain Destroyed 16 | . . . . . 4 . . . . . . 11 1 . . Melee 16 | . . . . . 4 . . . . . . 11 1 . . Projectile . | . . . . . . . . . . . . . . . . AOE . | . . . . . . . . . . . . . . . . Terrain Rammed . | . . . . . . . . . . . . . . . . Walls Destroyed . | . . . . . . . . . . . . . . . . Machines Disabled . | . . . . . . . . . . . . . . . . Actions | -11 -10 -10 -10 -9 -8 -7 -7 -6 -6 -5 -5 -5 -4 -4 -4 --------- Run | Yrd Mat Min Exi Min Mat Fac Sto Fac DSF Fac Gar Fac Fac Was Fac Total 3495 | 61 81 349 489 92 201 114 382 102 88 110 147 253 401 110 515 Wait 216 | . . 31 76 24 . . 4 . . . . 13 5 . 63 Move 3073 | 45 65 296 411 66 180 108 355 100 85 108 144 209 369 107 425 Hop 6 | . . 1 . . . 1 4 . . . . . . . . Pick Up 46 | 8 7 1 1 . 4 2 2 1 2 1 . 2 6 1 8 Fast Attach 27 | 4 1 1 . 1 2 1 3 . . . . 3 3 1 7 Attach 26 | 2 1 2 . . 4 1 1 1 1 . . 3 6 1 3 Detach 3 | . . 1 . . . . . . . . . 1 1 . . Swap 11 | 2 1 3 . . 3 . 1 . . . . 1 . . . Drop 33 | . 6 4 1 1 2 1 4 . . 1 . 7 2 . 4 Fire 19 | . . 9 . . 2 . 3 . . . . . 1 . 4 Melee 29 | . . . . . 4 . 5 . . . 3 12 5 . . Ram 4 | . . . . . . . . . . . . 1 3 . . Kick 1 | . . . . . . . . . . . . . . . 1 Crush . | . . . . . . . . . . . . . . . . Escape Stasis 1 | . . . . . . . . . . . . 1 . . . Rewire . | . . . . . . . . . . . . . . . . Trap . | . . . . . . . . . . . . . . . . Miscellaneous . | . . . . . . . . . . . . . . . . Route ------- -11/Scrapyard -10/Materials -10/Mines -10/Exiles -9/Mines -8/Materials -7/Factory -7/Storage -6/Factory -6/DSF -5/Factory -5/Garrison -5/Factory -4/Factory -4/Waste -4/Factory History --------- Turn | Location | Event 14 | -11/Scrapyard | Discovered new exit (range 16) 55 | -11/Scrapyard | Entered Materials 78 | -10/Materials | Discovered new exit (range 14) 121 | -10/Materials | Entered Mines 176 | -10/Mines | Learned location of Zion (-7) 263 | -10/Mines | Assisted by bots powering up and referring to "LRC-V3" 271 | -10/Mines | Deemed a non-threat by the Exiles lab entrance 272 | -10/Mines | Discovered new exit (range 5) 301 | -10/Mines | Build established: Mutant 304 | -10/Mines | Entered Exiles 304 | -10/Exiles | Accompanied by 3 allies 313 | -10/Exiles | Met 8R-AWN 342 | -10/Exiles | Met EX-HEX 359 | -10/Exiles | Met EX-BIN 363 | -10/Exiles | Aligned with FarCom system 364 | -10/Exiles | Given EX-Vault access code 372 | -10/Exiles | Opened EX-Vault 389 | -10/Exiles | Exiles lab attacked by MAIN.C 390 | -10/Exiles | Found Chronowheel 478 | -10/Exiles | Discovered new exit (range 12) 485 | -10/Exiles | Lost 5 allies 534 | -10/Exiles | Left Exiles lab with Chronowheel 534 | -10/Exiles | Entered Mines 534 | -9/Mines | Accompanied by 3 allies 554 | -9/Mines | Discovered new exit (range 14) 585 | -9/Mines | Entered Materials 585 | -8/Materials | Accompanied by 2 allies 585 | -8/Materials | Evolved 4 slots: Power x1, Propulsion x2, Utility x1 672 | -8/Materials | Discovered new exit (range 14) 680 | -8/Materials | Entered Factory 680 | -7/Factory | Evolved 2 slots: Propulsion x2 714 | -7/Factory | Discovered new exit (range 6) 723 | -7/Factory | Entered Storage 738 | -7/Storage | Assisted by bots powering up and referring to "LRC-V3" 827 | -7/Storage | Discovered new exit (range 16) 860 | -7/Storage | Entered Factory 860 | -6/Factory | Evolved 2 slots: Utility x1, Weapon x1 878 | -6/Factory | Activated Chronowheel 878 | -6/Factory | Spacetime reconverged on an earlier point 895 | -6/Factory | Identified exit to DSF 895 | -6/Factory | Entered DSF 915 | -6/DSF | Additional patrols routed to DSF 916 | -6/DSF | Discovered new exit (range 15) 919 | -6/DSF | Identified exit to Factory 920 | -6/DSF | Entered Factory 920 | -5/Factory | Evolved 2 slots: Utility x1, Weapon x1 957 | -5/Factory | Identified exit to Garrison 957 | -5/Factory | Entered Garrison 990 | -5/Garrison | Garrison Relay disabled 995 | -5/Garrison | Triggered checkpoint 999 | -5/Garrison | Triggered checkpoint 1003 | -5/Garrison | Discovered new exit (range 5) 1004 | -5/Garrison | Identified exit to Factory 1004 | -5/Garrison | Entered Factory 1137 | -5/Factory | Lost 3 parts (1n2u) 1145 | -5/Factory | Crushed by falling debris 1156 | -5/Factory | Discovered new exit (range 6) 1163 | -5/Factory | Entered another Factory area 1163 | -4/Factory | Evolved 2 slots: Propulsion x1, Utility x1 1400 | -4/Factory | Found Quantum Capacitor 1448 | -4/Factory | Lost 4 parts (1u3w) 1457 | -4/Factory | Sucked down chute 1457 | -4/Factory | Entered Waste 1472 | -4/Waste | EMP discharged 1472 | -4/Waste | System corruption reached 10% 1480 | -4/Waste | Spotted C-40 Crusher 1495 | -4/Waste | Spotted C-40 Crusher 1496 | -4/Waste | Spotted C-40 Crusher 1503 | -4/Waste | Spotted C-40 Crusher 1506 | -4/Waste | Crushed by Compactor (1 part destroyed, 1 dropped) 1509 | -4/Waste | Crushed by Compactor (1 part destroyed, 1 dropped) 1512 | -4/Waste | Crushed by Compactor (0 parts destroyed, 1 dropped) 1513 | -4/Waste | Crushed by Compactor (1 part destroyed) 1514 | -4/Waste | Spotted C-40 Crusher 1518 | -4/Waste | Discovered new exit (range 16) 1520 | -4/Waste | Spotted C-40 Crusher 1532 | -4/Waste | Entered Factory 1544 | -4/Factory | Lost 4 parts (1p1n2u) 1728 | -4/Factory | Spotted B-86 Titan 1843 | -4/Factory | Lost 4 parts (3n1u) 2119 | -4/Factory | Core integrity fell below 50% 2124 | -4/Factory | Core integrity fell below 20% 2129 | -4/Factory | Destroyed by H-77 Assassin with Coil Gun Last Messages --------------- 02117_ P-70 Sage system corrupted by crushing effect. 02117_ Penetrated by Slug. 02118_ Fusion Modulator explodes. 02118_ P-70 Sage destroyed. 02118_ Centrium Wheel destroyed. 02118_ Fusion Modulator explodes. 02118_ Impulse Thruster destroyed. 02118_ K-01 Serf destroyed. 02118_ P-70 Sage destroyed. 02119_ Penetrated by Slug. 02121_ Imp. Gyrokinetic Inverter destroyed. 02121_ Knocked back. 02122_ Acquired Antigrav System. 02122_ Phase Gun destroyed. 02122_ Slug penetrates Wall. 02122_ Penetrated by Slug. 02124_ Slug penetrates T-07 Excavator. 02127_ Slug penetrates Wall. 02127_ K-01 Serf collects debris. 02127_ Slug penetrates Wall. Map ----- +----------------------------------------------------+ | """ ?????????????????????????????????????????????? | | ?????????????????????????????????????????? | | """ """ ?????????????????????????????????????????? | | ?????????????????????????????????????????????????? | | ?????????????????????????????????????????????????? | | ?????????????????????????????????????????????????? | | ?????????????????????????????????????????????????? | | ?????????????????????????????????????????????????? | | ??????????????????????????????????????????##+++##? | | ??????????????????????????????????????????# #? | | "??????????????????????? !!???????????????# #? | | "??????????????????????? [ ???????????????# #? | | "??????????????????????? "?? ???????????# ## | | ??????????????????????# "?" ???????????# | | ???????????????????????# """ ???????????# ## | | ???????????????????????# ############ #? | | ???????????????????????# """ ?" # #? | | ???????????????????????# """ ## # #? | | ???????????????????????# """ #" " #? | | ???????????????????????# #" " +? | | ???????????????????????#! """ "" " #? | | ???????????????????????# """ "" % =" #? | | ???????????????????????# """ "" | " #? | | ???????????????????????# "" % " #? | | ?????????????????????####/#####;; "" #? | | ???????????????####### @ t H #? | | ?????????? k wk u h # | | ?????????????######### h u ## | | ?????????????????????# % h | | ?????????????????????# h | | ?????????????????????##################+### | | ??????????????????????????????????????????? | | ??????????????????????????????????????????? | | ??????????????????????????????????????????? ? | | ?????????????????????????????????????????????? ? | | ?????????????????????????????????????????????? ??? | | ?????????????????????????????????????????????????? | | ?????????????????????????????????????????????????? | | ?????????????????????????????????????????????????? | | ?????????????????????????????????????????????????? | | ?????????????????????????????????????????????????? | | ?????????????????????????????????????????????????? | | ?????????????????????????????????????????????????? | | ?????????????????????????????????????????????????? | | ?????????????????????????????????????????????????? | | ?????????????????????????????????????????????????? | | ?????????????????????????????????????????????????? | | ?????????????????????????????????????????????????? | | ?????????????????????????????????????????????????? | | ?????????????????????????????????????????????????? | +----------------------------------------------------+ Best States ------------- Heat Dissipation 43 Energy Generation 35 Energy Capacity 580 Matter Stores 217 Matter Capacity 550 Sight Range 16 Terrain Scan Density 10 Jamming Range 14 Cloak Strength 2 Additional Mass Support 9 Propulsion Shielding 66 Point Defense Rating 160 Evasion (%) 73 Recoil Reduction 1 Authchip Count 1 Item Schematics ----------------- Adv. Launcher Guidance Computer | -5/Factory | Downloaded Robot Schematics ------------------ None Fabricated ------------ Nothing Alien Tech Used ----------------- None Achievements -------------- None Challenges ------------ None Game ------ Seed PrecisionHoverBlade Manual? 0 Play Time 00:54:30 Cumulative 89.8 hours Start 2024.07.06 @ 20:40:50 End 2024.07.07 @ 21:01:16 Sessions 3 Manual Loads 0 Difficulty Rogue Special Mode None Game No. 129 Rogue 129 Adventurer 0 Explorer 0 Win Type - Total 0 Types 0/0/0/0/0/0/0/0/0 Lore% 39 Gallery% 53 Achievement% 34 Wizard Run 0 Options --------- Layout 0 ASCII 0 Keyboard 0 Movement Mouse Keybinds 0 Fullscreen 1 Font 24/Smallcaps Map View 76x50 Zoom Use 0% Tactical HUD 1 Map Filters NONE Filters NONE Steam 1 RUN: 66f4670b-9f67-42bf-8466-8d290ef31989